bitfinex-derivatives/quotes_BTCF0:USTF0_20241008
["timestamp","ask_amount","ask_price","bid_price","bid_amount"]
[1728396568115,0.3608,62908.0,62895.0,0.6765]
[1728396568116,0.3608,62908.0,62895.0,1.1535]
[1728396568314,0.079514,62904.0,62903.0,0.3608]
[1728396569620,0.079514,62904.0,62903.0,0.3618]
[1728396570321,0.079514,62904.0,62903.0,0.38517683]
[1728396570721,0.086514,62904.0,62903.0,0.38617683]
[1728396570924,0.086514,62904.0,62903.0,0.002]
[1728396571621,1.163434,62904.0,62903.0,0.002]
[1728396572317,1.08392,62904.0,62884.0,0.28]
[1728396572619,0.079539,62884.0,62883.0,0.3608]
[1728396572823,0.079522,62898.0,62883.0,0.66314806]
[1728396573023,0.07953,62891.0,62890.0,0.3608]
[1728396573329,0.07953,62891.0,62890.0,0.6408]
[1728396573821,0.3608,62900.0,62890.0,0.6408]
[1728396574014,0.079514,62904.0,62896.0,0.6308]
[1728396574222,0.079522,62897.0,62896.0,0.6408]
[1728396574629,0.079522,62897.0,62896.0,0.3608]
[1728396574926,0.07953,62891.0,62890.0,0.0078]
[1728396575133,0.07953,62891.0,62890.0,0.01]
[1728396575424,0.07953,62891.0,62890.0,0.003]
[1728396575725,0.07953,62891.0,62890.0,0.3608]
[1728396576427,0.07953,62891.0,62890.0,0.38317281]
[1728396576824,0.440317,62902.0,62890.0,0.38317281]
[1728396577126,0.079521,62898.0,62897.0,0.28]
[1728396577922,0.079521,62898.0,62897.0,0.27]
[1728396578126,0.076821,62898.0,62897.0,0.6308]
[1728396578327,0.079515,62903.0,62897.0,0.6338]
[1728396578526,0.3608,62908.0,62897.0,0.3638]
[1728396578824,0.079521,62898.0,62897.0,0.3638]
[1728396579028,0.081521,62898.0,62897.0,0.3638]
[1728396579223,0.081521,62898.0,62897.0,0.6338]
[1728396579625,0.002,62898.0,62897.0,0.6338]
[1728396580028,0.081521,62898.0,62897.0,0.6338]
[1728396580230,0.002,62898.0,62897.0,0.65632634]
[1728396581030,0.3628,62908.0,62897.0,0.65632634]
[1728396581228,0.07951,62907.0,62903.0,0.6308]
[1728396581427,0.046,62920.0,62906.0,0.3608]
[1728396581625,0.079493,62920.0,62919.0,0.27]
[1728396582326,0.3608,62932.0,62919.0,0.27]
[1728396582530,0.08187173,62925.0,62924.0,0.27]
[1728396582830,0.079505,62911.0,62910.0,0.27]
[1728396583219,0.079505,62911.0,62910.0,0.6308]
[1728396583928,0.0807037,62911.0,62910.0,0.6308]
[1728396584124,0.17513373,62913.0,62910.0,0.54257202]
[1728396584318,0.17513373,62913.0,62912.0,0.6308]
[1728396584527,0.32619464,62913.0,62912.0,0.6308]
[1728396584726,0.23056291,62913.0,62912.0,0.6308]
[1728396585028,0.15106091,62913.0,62912.0,0.37611289]
[1728396585630,0.15106091,62913.0,62907.0,0.02257488]
[1728396585927,0.079544,62880.0,62879.0,0.02560646]
[1728396586125,0.440344,62880.0,62879.0,0.00238547]
[1728396586833,0.61457135,62880.0,62879.0,0.00238547]
[1728396587229,0.70216148,62880.0,62879.0,0.00238547]
[1728396587425,0.440344,62880.0,62879.0,0.00238547]
[1728396587725,0.52789764,62880.0,62879.0,0.00238547]
[1728396588233,0.52789764,62880.0,62879.0,0.00738547]
[1728396588234,0.52309764,62880.0,62879.0,0.00738547]
[1728396588530,0.60967331,62880.0,62879.0,0.00738547]
[1728396588730,0.435544,62880.0,62879.0,0.00738547]
[1728396589130,0.59649374,62880.0,62879.0,0.01038547]
[1728396589330,0.77062305,62880.0,62879.0,0.008]
[1728396589529,0.59849374,62880.0,62879.0,0.003]
[1728396589729,0.079547,62878.0,62869.0,0.28]
[1728396589934,0.31157361,62877.0,62869.0,0.28]
[1728396590138,0.07373822,62876.0,62869.0,0.28]
[1728396590328,0.15828639,62874.0,62869.0,0.28]
[1728396590632,0.23202461,62873.0,62869.0,0.28]
[1728396590842,0.07373822,62872.0,62869.0,0.28]
[1728396591029,0.15828639,62873.0,62869.0,0.28]
[1728396591030,0.07373822,62871.0,62869.0,0.28]
[1728396591224,0.07373822,62870.0,62869.0,0.28]
[1728396591629,0.07373822,62870.0,62869.0,1.35716]
[1728396592138,0.14149501,62872.0,62869.0,1.37988529]
[1728396592336,0.13849501,62871.0,62869.0,0.30472529]
[1728396592636,0.13849501,62870.0,62869.0,0.02472529]
[1728396592838,0.003,62870.0,62869.0,0.02272529]
[1728396593038,0.003,62870.0,62869.0,0.47816]
[1728396593340,0.003,62870.0,62869.0,0.001]
[1728396594231,0.079545,62879.0,62869.0,1.35816]
[1728396594435,0.079545,62879.0,62870.0,0.47716]
[1728396594637,0.079545,62879.0,62869.0,0.2818]
[1728396594831,0.440344,62880.0,62869.0,0.281]
[1728396595031,0.004,62870.0,62869.0,0.281]
[1728396595232,0.004,62870.0,62869.0,0.001]
[1728396595538,0.004,62870.0,62867.0,0.06872462]
[1728396595930,0.07955,62876.0,62867.0,0.06872462]
[1728396596336,0.001,62870.0,62869.0,0.014]
[1728396596940,0.079551,62875.0,62867.0,0.06872462]
[1728396597241,0.001,62870.0,62867.0,0.08272462]
[1728396597443,0.001,62870.0,62867.0,0.09672462]
[1728396597645,0.001,62870.0,62868.0,0.4772]
[1728396597838,0.079548,62877.0,62868.0,0.4772]
[1728396598037,0.079548,62877.0,62867.0,0.09672462]
[1728396598236,0.3608,62880.0,62867.0,0.09672462]
[1728396598742,0.079545,62879.0,62867.0,0.08272462]
[1728396598943,0.079545,62879.0,62878.0,0.3608]
[1728396599147,0.3608,62893.0,62878.0,0.6308]
[1728396599441,0.079529,62892.0,62879.0,0.0437]
[1728396599644,0.3608,62893.0,62872.0,0.3608]
[1728396599645,0.079544,62880.0,62872.0,0.3608]
[1728396599836,0.3608,62879.0,62872.0,0.3608]
[1728396600030,0.441345,62879.0,62878.0,0.00092]
[1728396600234,0.079551,62875.0,62872.0,0.388336]
[1728396600434,0.079547,62878.0,62872.0,0.388336]
[1728396600835,0.3608,62879.0,62872.0,0.388336]
[1728396601038,0.079548,62877.0,62872.0,0.388336]
[1728396601238,0.07955,62875.0,62872.0,0.388336]
[1728396601640,0.07955,62875.0,62872.0,0.397336]
[1728396602142,0.440353,62873.0,62872.0,0.036536]
[1728396602442,0.3608,62873.0,62867.0,0.0453]
[1728396602652,0.3608,62873.0,62872.0,0.013]
[1728396602948,0.001,62875.0,62872.0,0.293]
[1728396603141,0.079547,62878.0,62872.0,0.28]
[1728396603343,0.001,62873.0,62872.0,0.013]
[1728396603538,0.3608,62886.0,62872.0,1.37016]
[1728396603735,0.079538,62885.0,62881.0,0.28]
[1728396603940,0.3608,62886.0,62881.0,0.28]
[1728396604139,0.3608,62886.0,62882.0,0.0461]
[1728396605147,0.001,62885.0,62882.0,0.0461]
[1728396605747,0.3638,62886.0,62876.0,0.3608]
[1728396605938,0.079538,62885.0,62873.0,0.0475]
[1728396606144,0.079551,62874.0,62873.0,0.0475]
[1728396606350,0.3608,62877.0,62873.0,0.0475]
[1728396606548,0.3598,62877.0,62873.0,0.0475]
[1728396606750,0.3598,62877.0,62876.0,0.28]
[1728396607049,0.439348,62877.0,62876.0,0.28]
[1728396607247,0.079558,62869.0,62858.0,0.28]
[1728396607443,0.440358,62869.0,62863.0,0.02814293]
[1728396608249,0.079564,62864.0,62863.0,0.02814293]
[1728396608546,0.079564,62864.0,62857.0,0.28]
[1728396608748,0.07957,62860.0,62857.0,0.28]
[1728396608948,0.079564,62864.0,62857.0,0.28]
[1728396609152,0.07956,62868.0,62863.0,0.28]
[1728396609351,0.3595,62869.0,62863.0,0.28]
[1728396609352,0.079563,62865.0,62863.0,0.28]
[1728396609546,0.3595,62869.0,62863.0,0.28]
[1728396609742,0.079563,62865.0,62863.0,0.28]
[1728396610142,0.079564,62864.0,62863.0,0.28]
[1728396610347,0.001,62864.0,62857.0,0.014]
[1728396610542,0.079572,62858.0,62857.0,0.014]
[1728396610850,0.079572,62858.0,62857.0,0.011]
[1728396611652,0.001,62858.0,62855.0,0.38846195]
[1728396612550,0.006,62858.0,62857.0,0.001]
[1728396612951,0.006,62858.0,62857.0,0.006]
[1728396613557,0.006,62858.0,62857.0,0.001]
[1728396613948,0.002,62858.0,62855.0,0.38846195]
[1728396614143,0.004,62858.0,62855.0,0.38846195]
[1728396614654,0.440374,62856.0,62855.0,0.02766195]
[1728396614849,0.3608,62856.0,62850.0,0.00238655]
[1728396615049,0.079581,62851.0,62850.0,0.00238655]
[1728396617350,0.081581,62851.0,62850.0,0.00238655]
[1728396617651,0.081581,62851.0,62834.0,0.54336]
[1728396617652,0.0796,62836.0,62834.0,0.48886]
[1728396617853,0.079594,62841.0,62834.0,0.48886]
[1728396618059,0.3608,62844.0,62834.0,0.51673406]
[1728396618258,0.079601,62836.0,62834.0,0.47343406]
[1728396618447,0.079592,62842.0,62834.0,0.47343406]
[1728396618653,0.079592,62842.0,62838.0,0.28]
[1728396618960,0.079591,62843.0,62838.0,0.28]
[1728396619151,0.079591,62843.0,62842.0,0.28]
[1728396619353,0.3608,62844.0,62842.0,0.28]
[1728396619858,0.44039,62844.0,62837.0,0.28]
[1728396620061,0.3608,62848.0,62842.0,0.28]
[1728396620253,0.3608,62848.0,62847.0,0.28]
[1728396620453,0.079581,62851.0,62847.0,0.28]
[1728396620653,0.079584,62849.0,62847.0,0.28]
[1728396620948,0.079579,62852.0,62847.0,0.28]
[1728396621153,0.079581,62851.0,62847.0,0.28]
[1728396621364,0.079576,62855.0,62847.0,0.28]
[1728396621559,0.3608,62855.0,62852.0,0.28]
[1728396622455,0.079568,62861.0,62853.0,0.3608]
[1728396622658,0.079568,62861.0,62860.0,0.28]
[1728396623754,0.081568,62861.0,62860.0,0.28]
[1728396624356,0.094568,62861.0,62860.0,0.282]
[1728396624563,0.090068,62861.0,62860.0,0.282]
[1728396624771,0.090068,62861.0,62860.0,0.002]
[1728396625062,0.090068,62861.0,62839.0,0.36318662]
[1728396625063,0.079589,62844.0,62843.0,0.0432]
[1728396625252,0.3608,62846.0,62839.0,0.3616]
[1728396625449,0.3608,62846.0,62839.0,0.3608]
[1728396625450,0.079595,62840.0,62839.0,0.3608]
[1728396625652,0.3608,62846.0,62839.0,0.3608]
[1728396625857,0.440388,62846.0,62839.0,0.3608]
[1728396626060,0.079589,62844.0,62839.0,0.3608]
[1728396626361,0.079594,62841.0,62839.0,0.3608]
[1728396626558,0.079589,62844.0,62843.0,0.005]
[1728396627364,0.079595,62840.0,62839.0,0.00192254]
[1728396627551,0.0796,62836.0,62835.0,0.0008]
[1728396627756,0.0796,62836.0,62822.0,0.0004]
[1728396627757,0.079611,62827.0,62822.0,0.0004]
[1728396628064,0.440411,62827.0,62822.0,0.0004]
[1728396628566,0.440411,62827.0,62824.0,0.02843999]
[1728396628862,0.440411,62827.0,62811.0,0.02410313]
[1728396628863,0.2637,62818.0,62811.0,0.02410313]
[1728396629068,0.2637,62818.0,62776.0,0.06576141]
[1728396629069,0.079668,62782.0,62776.0,0.06576141]
[1728396629249,0.079668,62782.0,62769.0,0.0004]
[1728396629250,0.079682,62771.0,62769.0,0.0004]
[1728396629453,1.11872,62770.0,62769.0,0.0004]
[1728396629954,1.71872,62770.0,62769.0,0.0004]
[1728396630555,1.71872,62770.0,62769.0,0.0002]
[1728396630763,1.71872,62770.0,62769.0,0.0022]
[1728396630960,1.71872,62770.0,62769.0,0.0042]
[1728396631662,1.71972,62770.0,62769.0,0.0022]
[1728396632360,1.799403,62770.0,62769.0,0.0022]
[1728396632668,1.943403,62770.0,62769.0,0.0002]
[1728396632965,0.445483,62770.0,62769.0,0.0002]
[1728396633973,0.865483,62770.0,62769.0,0.0002]
[1728396634677,0.865483,62770.0,62769.0,0.08712956]
[1728396636163,0.865483,62770.0,62769.0,0.0002]
[1728396636369,0.865483,62770.0,62769.0,0.08689433]
[1728396636676,0.73810824,62770.0,62769.0,0.08689433]
[1728396636866,0.73810824,62770.0,62769.0,0.0002]
[1728396637375,0.31810824,62770.0,62769.0,0.0002]
[1728396637680,0.31810824,62770.0,62769.0,0.20608569]
[1728396637681,0.14289379,62770.0,62769.0,0.20608569]
[1728396637969,0.14289379,62770.0,62769.0,0.08571867]
[1728396638368,0.14289379,62770.0,62769.0,0.22711683]
[1728396638575,0.14289379,62770.0,62769.0,0.08571867]
[1728396638974,0.14289379,62770.0,62769.0,0.08464196]
[1728396639673,0.14289379,62770.0,62769.0,0.1852971]
[1728396639860,0.14289379,62770.0,62769.0,0.08464196]
[1728396640670,0.14289379,62770.0,62769.0,0.1852971]
[1728396640868,0.14289379,62770.0,62769.0,0.08464196]
[1728396641973,0.14289379,62770.0,62769.0,0.1852971]
[1728396642775,0.14289379,62770.0,62769.0,0.44355647]
[1728396642983,0.14289379,62770.0,62769.0,0.1852971]
[1728396643573,0.14289379,62770.0,62769.0,0.29815407]
[1728396643774,0.14289379,62770.0,62769.0,0.18284119]
[1728396644278,0.14289379,62770.0,62769.0,0.30871902]
[1728396644579,0.14289379,62770.0,62769.0,0.29815407]
[1728396644880,0.14289379,62770.0,62769.0,0.0002]
[1728396645086,0.084683,62770.0,62769.0,0.0002]
[1728396645277,0.084683,62770.0,62769.0,0.02787987]
[1728396645881,0.084683,62770.0,62769.0,0.06881311]
[1728396651074,0.445483,62770.0,62769.0,0.02787987]
[1728396651278,1.943403,62770.0,62769.0,0.0002]
[1728396652281,0.079695,62761.0,62760.0,0.0004]
[1728396652482,0.860495,62761.0,62760.0,0.0004]
[1728396652673,0.720495,62761.0,62760.0,0.0004]
[1728396652881,1.798495,62761.0,62760.0,0.0004]
[1728396653080,0.720495,62761.0,62760.0,0.0004]
[1728396653281,1.198495,62761.0,62760.0,0.0004]
[1728396653482,1.199495,62761.0,62760.0,0.0054]
[1728396653879,0.721495,62761.0,62760.0,0.0054]
[1728396655386,1.800495,62761.0,62760.0,0.0074]
[1728396657085,0.07971,62749.0,62748.0,1e-06]
[1728396657288,1.08131,62749.0,62748.0,1e-06]
[1728396657488,1.87939,62749.0,62748.0,1e-06]
[1728396657788,1.87939,62749.0,62737.0,0.02925644]
[1728396657789,1.79968,62749.0,62730.0,0.1015]
[1728396657984,0.720519,62742.0,62730.0,0.1015]
[1728396658185,0.6408,62742.0,62733.0,0.02886601]
[1728396658385,0.079735,62729.0,62721.0,0.00239149]
[1728396658589,0.440535,62729.0,62721.0,0.00239149]
[1728396658792,0.918775,62729.0,62724.0,0.02928228]
[1728396658985,0.440535,62729.0,62724.0,0.02928228]
[1728396659587,1.040535,62729.0,62724.0,0.02928228]
[1728396659792,0.720535,62729.0,62720.0,0.0004]
[1728396660092,0.441535,62729.0,62720.0,0.0004]
[1728396660282,0.001,62729.0,62728.0,0.12107024]
[1728396660480,0.3608,62735.0,62728.0,0.04133324]
[1728396660686,0.079729,62734.0,62732.0,0.079731]
[1728396660887,0.07973,62733.0,62731.0,0.079733]
[1728396661290,0.3608,62735.0,62728.0,0.0004]
[1728396661490,0.080735,62729.0,62728.0,0.04133324]
[1728396661989,0.080735,62729.0,62728.0,0.0004]
[1728396662183,0.448535,62729.0,62728.0,0.0014]
[1728396662386,1.526775,62729.0,62728.0,1e-06]
[1728396662594,1.526775,62729.0,62725.0,1e-06]
[1728396662595,0.079739,62726.0,62725.0,1e-06]
[1728396662894,0.079752,62716.0,62715.0,0.0004]
[1728396663098,0.07976,62710.0,62708.0,0.1045]
[1728396663391,0.079761,62709.0,62708.0,0.017425]
[1728396663692,0.079776,62697.0,62683.0,0.3608]
[1728396663994,0.720576,62697.0,62689.0,0.02837434]
[1728396664290,0.720576,62697.0,62679.0,0.0547]
[1728396664291,1.799056,62697.0,62679.0,0.0547]
[1728396664487,1.799056,62697.0,62678.0,0.00239312]
[1728396665079,1.199056,62697.0,62680.0,0.28]
[1728396665281,1.199056,62697.0,62681.0,0.0547]
[1728396665488,0.720576,62697.0,62690.0,0.079784]
[1728396665889,0.720176,62697.0,62696.0,0.0014]
[1728396666287,0.721176,62697.0,62696.0,0.0064]
[1728396666482,0.07978,62694.0,62681.0,0.0547]
[1728396666889,0.5583,62694.0,62684.0,0.079793]
[1728396667195,0.5583,62694.0,62681.0,0.0547]
[1728396667196,1.1583,62694.0,62681.0,0.0547]
[1728396667589,1.1583,62694.0,62681.0,0.134496]
[1728396668094,1.07952,62694.0,62674.0,0.0535]
[1728396668394,0.440599,62679.0,62678.0,0.04332636]
[1728396668591,0.3608,62679.0,62678.0,0.04093324]
[1728396668791,0.3608,62679.0,62670.0,0.3608]
[1728396669096,0.3608,62679.0,62670.0,0.40173324]
[1728396669097,0.28,62676.0,62670.0,0.40173324]
[1728396669486,0.440599,62679.0,62672.0,0.079808]
[1728396669690,0.441599,62679.0,62672.0,0.079808]
[1728396669889,0.3618,62679.0,62672.0,0.04093324]
[1728396670195,0.079806,62674.0,62670.0,0.3608]
[1728396670392,0.079807,62673.0,62670.0,0.40173324]
[1728396670796,0.001,62676.0,62670.0,0.48154324]
[1728396670996,0.001,62676.0,62674.0,0.079805]
[1728396671391,0.001,62676.0,62674.0,0.04093324]
[1728396671591,0.001,62676.0,62675.0,0.079804]
[1728396672000,0.001,62676.0,62675.0,0.04093324]
[1728396672194,0.002,62679.0,62675.0,0.04093324]
[1728396672394,0.002,62679.0,62676.0,0.079802]
[1728396672709,0.001,62679.0,62675.0,0.04093324]
[1728396672889,0.001,62676.0,62675.0,0.04093324]
[1728396673089,0.001,62676.0,62675.0,0.12073724]
[1728396673296,0.3608,62686.0,62675.0,0.04093324]
[1728396673493,0.3608,62686.0,62679.0,0.3608]
[1728396673691,0.00239393,62687.0,62681.0,0.079796]
[1728396673895,0.00239393,62687.0,62679.0,0.40173324]
[1728396674598,0.00239393,62687.0,62684.0,0.079792]
[1728396674894,0.0004,62694.0,62686.0,0.3608]
[1728396675101,0.0004,62697.0,62693.0,0.3608]
[1728396675585,0.0004,62697.0,62695.0,0.079777]
[1728396675791,0.0004,62697.0,62693.0,0.40173324]
[1728396675992,0.28,62694.0,62686.0,0.3616]
[1728396676191,0.28,62694.0,62686.0,0.40173324]
[1728396676391,0.079786,62689.0,62686.0,0.40173324]
[1728396676787,0.259286,62694.0,62686.0,0.40173324]
[1728396676988,0.079789,62687.0,62686.0,0.04093324]
[1728396677291,0.079789,62687.0,62676.0,0.3608]
[1728396677504,0.3608,62688.0,62676.0,0.40173324]
[1728396677692,0.3608,62688.0,62683.0,0.079793]
[1728396677893,0.002,62694.0,62685.0,0.28]
[1728396678102,0.002,62694.0,62691.0,0.079783]
[1728396678591,0.0004,62697.0,62696.0,0.079777]
[1728396678998,0.0004,62697.0,62696.0,0.12071024]
[1728396679194,0.3608,62700.0,62696.0,0.12071024]
[1728396679399,0.28,62711.0,62699.0,0.080173]
[1728396679697,0.440563,62707.0,62706.0,0.0004]
[1728396679895,0.720563,62707.0,62706.0,0.0004]
[1728396680602,0.724563,62707.0,62706.0,0.0004]
[1728396680804,0.444563,62707.0,62706.0,0.04133324]
[1728396681198,0.451563,62707.0,62706.0,0.04133324]
[1728396681803,0.3718,62707.0,62706.0,0.04133324]
[1728396682011,0.451563,62707.0,62706.0,0.04133324]
[1728396682713,0.2802,62707.0,62706.0,0.12109824]
[1728396682895,0.3608,62715.0,62708.0,0.079762]
[1728396683098,0.3608,62715.0,62708.0,0.440562]
[1728396683297,0.079746,62721.0,62708.0,1.55989524]
[1728396683496,0.079741,62725.0,62715.0,0.079753]
[1728396683702,0.079743,62723.0,62715.0,0.440953]
[1728396683901,0.3608,62727.0,62715.0,0.48188624]
[1728396684103,0.07974,62726.0,62715.0,0.48188624]
[1728396684301,0.3608,62727.0,62715.0,0.48188624]
[1728396684501,0.3608,62727.0,62715.0,1.56024624]
[1728396684702,0.0004,62729.0,62726.0,0.0004]
[1728396684902,0.31986676,62740.0,62735.0,0.079728]
[1728396685103,0.079716,62745.0,62739.0,0.079723]
[1728396685609,0.079726,62737.0,62735.0,0.3608]
[1728396685800,0.28,62740.0,62728.0,0.0004]
[1728396685997,0.079729,62734.0,62728.0,0.0004]
[1728396686198,0.28,62735.0,62728.0,0.080137]
[1728396686199,0.079729,62735.0,62728.0,0.080137]
[1728396686397,0.08251311,62741.0,62728.0,0.0004]
[1728396686398,0.28,62729.0,62728.0,0.0004]
[1728396686601,0.6408,62729.0,62715.0,0.0004]
[1728396686804,0.079752,62716.0,62715.0,0.0004]
[1728396687002,0.359752,62716.0,62715.0,0.0004]
[1728396687807,0.079746,62721.0,62715.0,0.0004]
[1728396688011,0.0004,62727.0,62717.0,0.3608]
[1728396688512,0.079741,62725.0,62718.0,0.079748]
[1728396688808,0.0004,62727.0,62724.0,0.3608]
[1728396689002,0.080138,62727.0,62724.0,0.3608]
[1728396689403,0.07974,62725.0,62724.0,0.3608]
[1728396689606,0.0004,62727.0,62724.0,0.3608]
[1728396690004,0.0024,62727.0,62724.0,0.3608]
[1728396690203,0.082139,62727.0,62724.0,0.3608]
[1728396690400,0.0024,62727.0,62724.0,0.3608]
[1728396690603,0.001,62725.0,62724.0,0.3608]
[1728396690805,0.001,62725.0,62724.0,0.3638]
[1728396691507,0.001,62725.0,62724.0,0.003]
[1728396691508,0.08074,62725.0,62724.0,0.003]
[1728396692109,0.08074,62725.0,62724.0,0.3638]
[1728396692307,0.07974,62725.0,62724.0,0.3638]
[1728396692705,0.079739,62726.0,62724.0,0.3638]
[1728396692904,0.0014,62727.0,62724.0,0.3638]
[1728396693097,0.08074,62725.0,62724.0,0.3638]
[1728396693303,0.001,62725.0,62724.0,0.3638]
[1728396693703,0.0004,62727.0,62726.0,0.079739]
[1728396693905,0.28,62744.0,62724.0,0.3638]
[1728396693906,0.079723,62739.0,62725.0,0.47828]
[1728396694109,0.079723,62739.0,62735.0,0.079728]
[1728396694408,0.079723,62739.0,62738.0,0.0004]
[1728396696610,0.084723,62739.0,62738.0,0.0004]
[1728396697108,0.364723,62739.0,62738.0,0.0004]
[1728396697412,0.079738,62727.0,62726.0,0.0004]
[1728396698505,0.3752,62739.0,62726.0,0.0004]
[1728396698506,0.0144,62739.0,62726.0,1.43948]
[1728396698712,0.0054,62739.0,62738.0,0.079724]
[1728396698902,0.0054,62739.0,62738.0,0.679724]
[1728396699104,0.079724,62738.0,62737.0,0.3608]
[1728396699504,0.0054,62739.0,62737.0,0.3608]
[1728396699711,0.0004,62739.0,62737.0,0.3608]
[1728396699913,0.080123,62739.0,62737.0,0.3608]
[1728396700214,0.0004,62739.0,62737.0,0.440524]
[1728396700403,0.004,62738.0,62737.0,0.440524]
[1728396700603,0.004,62738.0,62737.0,0.46871637]
[1728396700816,0.004,62738.0,62737.0,0.94691637]
[1728396701002,0.004,62738.0,62737.0,0.46871637]
[1728396701206,0.004,62738.0,62737.0,0.82951637]
[1728396701711,0.004,62738.0,62737.0,0.83151637]
[1728396702207,0.0004,62741.0,62740.0,0.079721]
[1728396702412,0.0004,62741.0,62740.0,0.360121]
[1728396702606,0.28,62759.0,62745.0,0.079715]
[1728396702807,0.0797,62758.0,62753.0,0.0004]
[1728396704009,0.28,62759.0,62753.0,0.0004]
[1728396704412,0.079714,62747.0,62744.0,0.0008]
[1728396704608,0.084104,62754.0,62744.0,0.02853445]
[1728396704810,0.079711,62749.0,62743.0,0.3608]
[1728396705006,0.079711,62749.0,62746.0,0.079713]
[1728396705403,0.0044,62754.0,62745.0,0.28]
[1728396705606,0.0044,62754.0,62751.0,0.079706]
[1728396705804,0.084104,62754.0,62751.0,0.079706]
[1728396706209,0.0044,62754.0,62745.0,0.28]
[1728396706414,0.079708,62751.0,62748.0,0.07971]
[1728396706609,0.001,62749.0,62748.0,0.07971]
[1728396707518,0.079706,62752.0,62745.0,0.6496]
[1728396707717,0.079706,62752.0,62751.0,0.3608]
[1728396708221,0.07971,62749.0,62748.0,0.008]
[1728396709610,0.07971,62749.0,62748.0,0.011]
[1728396710014,0.07971,62749.0,62748.0,0.003]
[1728396710718,0.07971,62749.0,62748.0,0.004]
[1728396712118,0.08371,62749.0,62748.0,0.001]
[1728396713615,0.004,62749.0,62743.0,0.3089881]
[1728396713822,0.079707,62752.0,62750.0,0.079708]
[1728396714122,0.07971,62749.0,62748.0,0.003]
[1728396714317,0.07971,62749.0,62748.0,0.002]
[1728396714523,0.07971,62749.0,62748.0,0.001]
[1728396714721,0.07971,62749.0,62748.0,0.002]
[1728396715124,0.07971,62749.0,62748.0,0.001]
[1728396717118,0.079715,62745.0,62742.0,0.3901645]
[1728396717326,0.079713,62747.0,62742.0,0.3901645]
[1728396717525,0.079715,62746.0,62743.0,0.079717]
[1728396717828,0.079711,62749.0,62745.0,0.079714]
[1728396718027,0.080711,62749.0,62745.0,0.079714]
[1728396718326,0.080711,62749.0,62748.0,0.004]
[1728396718727,0.079711,62749.0,62748.0,0.004]
[1728396719428,0.079706,62752.0,62748.0,0.004]
[1728396719626,0.079706,62752.0,62751.0,0.18]
[1728396720227,0.079711,62748.0,62747.0,0.18]
[1728396720421,0.079716,62744.0,62743.0,0.004]
[1728396720828,0.18,62748.0,62742.0,0.3608]
[1728396720829,0.079718,62743.0,62742.0,0.3608]
[1728396721027,0.079718,62743.0,62742.0,0.38963686]
[1728396722119,0.079718,62743.0,62742.0,0.39263686]
[1728396722523,0.001,62748.0,62742.0,0.39263686]
[1728396722725,0.001,62748.0,62747.0,0.359712]
[1728396723321,0.079713,62747.0,62743.0,0.359716]
[1728396723618,0.080718,62743.0,62742.0,0.39663686]
[1728396724021,0.080718,62743.0,62742.0,0.39263686]
[1728396724227,0.079718,62743.0,62742.0,0.39263686]
[1728396724543,0.079718,62743.0,62742.0,0.38963686]
[1728396724725,0.079714,62746.0,62742.0,0.38963686]
[1728396724925,0.079718,62743.0,62742.0,0.38963686]
[1728396725325,0.080718,62743.0,62742.0,0.39363686]
[1728396725526,0.080718,62743.0,62742.0,0.39663686]
[1728396726530,0.001,62743.0,62742.0,0.47635586]
[1728396726725,0.001,62743.0,62742.0,0.75635586]
[1728396727129,0.0004,62754.0,62742.0,0.67263686]
[1728396727328,0.079707,62751.0,62747.0,0.079712]
[1728396727526,0.0004,62754.0,62742.0,0.67743686]
[1728396727727,0.079714,62746.0,62742.0,0.67663686]
[1728396727929,0.001,62743.0,62742.0,0.67663686]
[1728396728129,0.001,62743.0,62742.0,0.75335586]
[1728396728325,0.001,62743.0,62742.0,0.75635586]
[1728396728630,0.079714,62746.0,62743.0,0.079717]
[1728396729338,0.079718,62743.0,62742.0,0.39343686]
[1728396729531,0.079707,62751.0,62744.0,0.079716]
[1728396729731,0.079707,62751.0,62744.0,0.079715]
[1728396729938,0.079717,62744.0,62742.0,0.67343686]
[1728396730241,0.001,62743.0,62742.0,0.67663686]
[1728396730542,0.001,62743.0,62742.0,0.75635586]
[1728396730839,0.079709,62750.0,62744.0,0.004]
[1728396731035,0.079709,62750.0,62747.0,0.079712]
[1728396731240,0.079709,62750.0,62749.0,0.3608]
[1728396731439,0.0004,62754.0,62749.0,0.3608]
[1728396731639,0.079707,62752.0,62750.0,0.079709]
[1728396731841,0.0004,62754.0,62749.0,0.3608]
[1728396732044,0.0004,62754.0,62753.0,0.079705]
[1728396732540,0.0004,62754.0,62753.0,0.557785]
[1728396732835,0.0004,62754.0,62753.0,0.918585]
[1728396733041,0.0004,62754.0,62753.0,1.518585]
[1728396734042,0.0004,62773.0,62760.0,0.079695]
[1728396734247,0.079686,62768.0,62761.0,0.3608]
[1728396734539,0.079686,62768.0,62754.0,0.3608]
[1728396734540,0.079702,62755.0,62754.0,0.3608]
[1728396734746,0.079699,62758.0,62754.0,0.3608]
[1728396734947,0.079701,62756.0,62754.0,0.3608]
[1728396735148,0.079702,62755.0,62754.0,0.3608]
[1728396735846,0.002,62755.0,62754.0,0.3608]
[1728396737138,0.002,62755.0,62754.0,0.3638]
[1728396737339,0.002,62755.0,62754.0,0.443504]
[1728396738750,0.002,62755.0,62754.0,0.921544]
[1728396739352,0.002,62755.0,62754.0,1.521544]
[1728396739548,0.079693,62763.0,62760.0,0.079696]